[Event "Betsys MČR v online bleskovém šachu 2021"]
[Site "Chess.com"]
[Date "2021.04.17"]
[Round "7"]
[White "Sandokanom"]
[Black "marfuss"]
[Result "0-1"]
[WhiteElo "1755"]
[BlackElo "2040"]
[TimeControl "180+1"]
[EndTime "10:13:13 PDT"]
[Termination "Uživatel marfuss zvítězil na čas"]

1. c4 {[%clk 0:03:00.9]} 1... f5 {[%clk 0:02:58.9]} 2. Nf3 {[%clk 0:03:01.2]}
2... Nf6 {[%clk 0:02:58.3]} 3. Nc3 {[%clk 0:03:01.4]} 3... g6 {[%clk 0:02:58.5]}
4. Qc2 {[%clk 0:03:00.7]} 4... Bg7 {[%clk 0:02:59.1]} 5. e4 {[%clk 0:02:56.3]}
5... d6 {[%clk 0:02:54]} 6. exf5 {[%clk 0:02:53.9]} 6... Bxf5 {[%clk 0:02:54.9]}
7. Bd3 {[%clk 0:02:52.5]} 7... Bxd3 {[%clk 0:02:38.5]} 8. Qxd3 {[%clk
0:02:53.4]} 8... O-O {[%clk 0:02:38.5]} 9. O-O {[%clk 0:02:52.4]} 9... e5 {[%clk
0:02:32.3]} 10. Re1 {[%clk 0:02:51.6]} 10... Nc6 {[%clk 0:02:30]} 11. Ne4 {[%clk
0:02:47.9]} 11... Nxe4 {[%clk 0:02:08.3]} 12. Qxe4 {[%clk 0:02:47.1]} 12... Qf6
{[%clk 0:02:08.6]} 13. d3 {[%clk 0:02:39]} 13... Rae8 {[%clk 0:02:07.4]} 14. Bg5
{[%clk 0:02:36.7]} 14... Qf5 {[%clk 0:02:01.7]} 15. a3 {[%clk 0:02:29.4]} 15...
h6 {[%clk 0:01:50.2]} 16. Bd2 {[%clk 0:02:21.9]} 16... g5 {[%clk 0:01:43.6]} 17.
h3 {[%clk 0:02:19.2]} 17... Nd4 {[%clk 0:01:03]} 18. Qxf5 {[%clk 0:02:12.4]}
18... Nxf5 {[%clk 0:01:02.8]} 19. Bc3 {[%clk 0:02:07.6]} 19... Rf7 {[%clk
0:00:58.8]} 20. Rad1 {[%clk 0:02:03]} 20... Ref8 {[%clk 0:00:57.2]} 21. b4
{[%clk 0:01:30.4]} 21... Ne7 {[%clk 0:00:49.9]} 22. d4 {[%clk 0:01:20.6]} 22...
exd4 {[%clk 0:00:31.4]} 23. Bxd4 {[%clk 0:01:21.5]} 23... a6 {[%clk 0:00:30.6]}
24. Bxg7 {[%clk 0:01:18]} 24... Kxg7 {[%clk 0:00:31.5]} 25. Nd4 {[%clk
0:01:13.7]} 25... Rc8 {[%clk 0:00:16.5]} 26. Rxe7 {[%clk 0:01:02.2]} 26... Rxe7
{[%clk 0:00:15.5]} 27. Nf5+ {[%clk 0:01:03.1]} 27... Kf6 {[%clk 0:00:15.3]} 28.
Nxe7 {[%clk 0:01:03.5]} 28... Kxe7 {[%clk 0:00:15.8]} 29. Re1+ {[%clk
0:01:02.3]} 29... Kf6 {[%clk 0:00:15.7]} 30. f3 {[%clk 0:00:59.5]} 30... Rd8
{[%clk 0:00:15.7]} 31. Kf2 {[%clk 0:00:59]} 31... d5 {[%clk 0:00:16.3]} 32. Rd1
{[%clk 0:00:56.6]} 32... Ke5 {[%clk 0:00:16.3]} 33. Ke3 {[%clk 0:00:53.5]} 33...
Rd6 {[%clk 0:00:14.9]} 34. c5 {[%clk 0:00:48.9]} 34... Rd8 {[%clk 0:00:12.9]}
35. g3 {[%clk 0:00:49]} 35... c6 {[%clk 0:00:13.4]} 36. f4+ {[%clk 0:00:47.4]}
36... gxf4+ {[%clk 0:00:12.9]} 37. gxf4+ {[%clk 0:00:48.3]} 37... Kf5 {[%clk
0:00:13.5]} 38. a4 {[%clk 0:00:42.7]} 38... Re8+ {[%clk 0:00:13.5]} 39. Kf3
{[%clk 0:00:40.9]} 39... Re4 {[%clk 0:00:14.2]} 40. Rb1 {[%clk 0:00:33.4]} 40...
Rxf4+ {[%clk 0:00:14.4]} 41. Kg3 {[%clk 0:00:32.8]} 41... Rc4 {[%clk 0:00:14.3]}
42. b5 {[%clk 0:00:28.1]} 42... axb5 {[%clk 0:00:12.3]} 43. axb5 {[%clk
0:00:28]} 43... Rxc5 {[%clk 0:00:12.6]} 44. bxc6 {[%clk 0:00:23]} 44... bxc6
{[%clk 0:00:13.5]} 45. Rf1+ {[%clk 0:00:22]} 45... Kg5 {[%clk 0:00:12.9]} 46.
h4+ {[%clk 0:00:20.4]} 46... Kg6 {[%clk 0:00:11.4]} 47. Rf4 {[%clk 0:00:19.2]}
47... Rc3+ {[%clk 0:00:11.5]} 48. Kg4 {[%clk 0:00:19.2]} 48... c5 {[%clk
0:00:11]} 49. h5+ {[%clk 0:00:18.1]} 49... Kg7 {[%clk 0:00:10.8]} 50. Rf5 {[%clk
0:00:17.7]} 50... d4 {[%clk 0:00:08.6]} 51. Rd5 {[%clk 0:00:15.5]} 51... d3
{[%clk 0:00:08]} 52. Rd7+ {[%clk 0:00:15.5]} 52... Kf6 {[%clk 0:00:08.4]} 53.
Rd6+ {[%clk 0:00:15.6]} 53... Kg7 {[%clk 0:00:08.7]} 54. Rd7+ {[%clk 0:00:15.6]}
54... Kf8 {[%clk 0:00:06.7]} 55. Kf5 {[%clk 0:00:13.1]} 55... c4 {[%clk
0:00:06.4]} 56. Kg6 {[%clk 0:00:13.2]} 56... Ke8 {[%clk 0:00:06.2]} 57. Rc7
{[%clk 0:00:10.1]} 57... d2 {[%clk 0:00:06.2]} 58. Rc8+ {[%clk 0:00:10.5]} 58...
Kd7 {[%clk 0:00:05.9]} 59. Rc5 {[%clk 0:00:08.6]} 59... d1=Q {[%clk 0:00:04.8]}
60. Kxh6 {[%clk 0:00:06.1]} 60... Qd2+ {[%clk 0:00:04.5]} 61. Kg6 {[%clk
0:00:05.5]} 61... Rg3+ {[%clk 0:00:04.9]} 62. Kh7 {[%clk 0:00:04.9]} 62... Qd3+
{[%clk 0:00:04.5]} 63. Kh8 {[%clk 0:00:04.1]} 63... Qd4+ {[%clk 0:00:04.9]} 0-1

[Event "Betsys MČR v online bleskovém šachu 2021"]
[Site "Chess.com"]
[Date "2021.04.17"]
[Round "7"]
[White "conysek"]
[Black "PetrVelicka"]
[Result "1-0"]
[WhiteElo "2127"]
[BlackElo "2357"]
[TimeControl "180+1"]
[EndTime "10:13:18 PDT"]
[Termination "Uživatel conysek zvítězil na čas"]

1. e4 {[%clk 0:03:00.9]} 1... Nf6 {[%clk 0:02:58.4]} 2. e5 {[%clk 0:03:00.8]}
2... Nd5 {[%clk 0:02:57.4]} 3. d4 {[%clk 0:03:01.7]} 3... d6 {[%clk 0:02:57.6]}
4. c4 {[%clk 0:03:02.6]} 4... Nb6 {[%clk 0:02:57.5]} 5. exd6 {[%clk 0:03:03.5]}
5... cxd6 {[%clk 0:02:57.4]} 6. Nc3 {[%clk 0:03:02.5]} 6... g6 {[%clk
0:02:57.4]} 7. h4 {[%clk 0:03:02.6]} 7... h5 {[%clk 0:02:54.3]} 8. Bd3 {[%clk
0:02:57.6]} 8... Bg7 {[%clk 0:02:53.9]} 9. Nge2 {[%clk 0:02:56.6]} 9... O-O
{[%clk 0:02:52.2]} 10. Be3 {[%clk 0:02:54.9]} 10... Nc6 {[%clk 0:02:49.1]} 11.
a3 {[%clk 0:02:50.6]} 11... d5 {[%clk 0:02:47.9]} 12. c5 {[%clk 0:02:46.8]}
12... Nc4 {[%clk 0:02:47]} 13. Bxc4 {[%clk 0:02:43.5]} 13... dxc4 {[%clk
0:02:47]} 14. Qd2 {[%clk 0:02:37.5]} 14... Bf5 {[%clk 0:02:43.9]} 15. Rd1 {[%clk
0:02:36.1]} 15... Na5 {[%clk 0:02:36.7]} 16. Nc1 {[%clk 0:02:12.9]} 16... Re8
{[%clk 0:02:31.4]} 17. O-O {[%clk 0:02:02]} 17... e6 {[%clk 0:02:21.6]} 18. Bg5
{[%clk 0:01:58.8]} 18... Qd7 {[%clk 0:02:19.5]} 19. Bh6 {[%clk 0:01:50]} 19...
Bh8 {[%clk 0:02:18.2]} 20. Qg5 {[%clk 0:01:44.3]} 20... Qe7 {[%clk 0:01:55.3]}
21. Qg3 {[%clk 0:01:36.1]} 21... Bf6 {[%clk 0:01:43.3]} 22. Bg5 {[%clk
0:01:34.1]} 22... Bxg5 {[%clk 0:01:43.4]} 23. hxg5 {[%clk 0:01:35]} 23... Rad8
{[%clk 0:01:38.9]} 24. Nb5 {[%clk 0:01:30.4]} 24... b6 {[%clk 0:01:22.7]} 25.
Nd6 {[%clk 0:01:27.6]} 25... Rf8 {[%clk 0:01:21.8]} 26. Nxf5 {[%clk 0:01:26.9]}
26... exf5 {[%clk 0:01:20.3]} 27. Rfe1 {[%clk 0:01:25.6]} 27... Qd7 {[%clk
0:01:19.3]} 28. cxb6 {[%clk 0:01:23.1]} 28... axb6 {[%clk 0:01:18]} 29. Ne2
{[%clk 0:01:17.8]} 29... Qd6 {[%clk 0:01:15.2]} 30. Qc3 {[%clk 0:01:08.8]} 30...
Rc8 {[%clk 0:01:07.9]} 31. g3 {[%clk 0:00:59.3]} 31... Nb3 {[%clk 0:01:05.8]}
32. Nf4 {[%clk 0:00:46.6]} 32... b5 {[%clk 0:01:05.1]} 33. Re3 {[%clk
0:00:40.5]} 33... Rcd8 {[%clk 0:00:59.4]} 34. d5 {[%clk 0:00:40.5]} 34... Qc5
{[%clk 0:00:52.7]} 35. Rde1 {[%clk 0:00:36.6]} 35... Qd4 {[%clk 0:00:39.6]} 36.
Qb4 {[%clk 0:00:29.4]} 36... Qb6 {[%clk 0:00:37.2]} 37. Re7 {[%clk 0:00:24.6]}
37... Nc5 {[%clk 0:00:34.9]} 38. Qc3 {[%clk 0:00:13.4]} 38... Ne4 {[%clk
0:00:32.9]} 39. Qc2 {[%clk 0:00:10.7]} 39... Qd6 {[%clk 0:00:30]} 40. Ra7 {[%clk
0:00:06.8]} 40... Ra8 {[%clk 0:00:25.5]} 41. Rxa8 {[%clk 0:00:06.4]} 41... Rxa8
{[%clk 0:00:25.1]} 42. Kg2 {[%clk 0:00:07.3]} 42... Nxg5 {[%clk 0:00:21]} 43.
Qc3 {[%clk 0:00:05.5]} 43... Ne4 {[%clk 0:00:19.3]} 44. Qc2 {[%clk 0:00:04.2]}
44... h4 {[%clk 0:00:15.9]} 45. Qc1 {[%clk 0:00:01.9]} 45... hxg3 {[%clk
0:00:15.5]} 46. fxg3 {[%clk 0:00:02.8]} 46... Rd8 {[%clk 0:00:13.4]} 47. Qe3
{[%clk 0:00:02.9]} 47... Nf6 {[%clk 0:00:11.7]} 48. Qf3 {[%clk 0:00:03.1]} 48...
Nxd5 {[%clk 0:00:09.8]} 49. Nxd5 {[%clk 0:00:03.4]} 49... Qxd5 {[%clk 0:00:10]}
50. Re8+ {[%clk 0:00:04]} 50... Kg7 {[%clk 0:00:08.6]} 51. Qxd5 {[%clk
0:00:03.2]} 51... Rxd5 {[%clk 0:00:07.7]} 52. Rb8 {[%clk 0:00:04.1]} 52... Rc5
{[%clk 0:00:06.9]} 53. Kf3 {[%clk 0:00:03.6]} 53... c3 {[%clk 0:00:07]} 54. bxc3
{[%clk 0:00:04.1]} 54... Rxc3+ {[%clk 0:00:07.3]} 55. Kf4 {[%clk 0:00:05]} 55...
Rxa3 {[%clk 0:00:07.8]} 56. Rxb5 {[%clk 0:00:05.2]} 56... Ra4+ {[%clk
0:00:08.5]} 57. Kf3 {[%clk 0:00:05.1]} 57... Rf4+ {[%clk 0:00:08.1]} 58. gxf4
{[%clk 0:00:04.6]} 58... Kf6 {[%clk 0:00:07.1]} 59. Rb6+ {[%clk 0:00:04.8]}
59... Kg7 {[%clk 0:00:07.4]} 60. Kg3 {[%clk 0:00:05.2]} 60... Kh6 {[%clk
0:00:07.7]} 61. Kh4 {[%clk 0:00:05.4]} 61... Kg7 {[%clk 0:00:07.9]} 62. Kg5
{[%clk 0:00:05.7]} 62... Kh7 {[%clk 0:00:07]} 63. Kf6 {[%clk 0:00:05.9]} 63...
Kh6 {[%clk 0:00:07.3]} 64. Kxf7 {[%clk 0:00:06.1]} 64... Kh5 {[%clk 0:00:07.6]}
65. Rxg6 {[%clk 0:00:05.9]} 1-0

[Event "Betsys MČR v online bleskovém šachu 2021"]
[Site "Chess.com"]
[Date "2021.04.17"]
[Round "7"]
[White "rolkento"]
[Black "machajda"]
[Result "0-1"]
[WhiteElo "2228"]
[BlackElo "2044"]
[TimeControl "180+1"]
[EndTime "10:13:18 PDT"]
[Termination "Uživatel machajda zvítězil matem"]

1. e4 {[%clk 0:03:00.9]} 1... c5 {[%clk 0:03:00.5]} 2. c3 {[%clk 0:03:00.5]}
2... d6 {[%clk 0:03:00.3]} 3. f4 {[%clk 0:03:00.1]} 3... Nf6 {[%clk 0:02:59.7]}
4. Qc2 {[%clk 0:02:59.7]} 4... Nc6 {[%clk 0:02:58.4]} 5. Nf3 {[%clk 0:02:59.5]}
5... g6 {[%clk 0:02:58.8]} 6. Bb5 {[%clk 0:02:58.9]} 6... Bg7 {[%clk 0:02:58.4]}
7. O-O {[%clk 0:02:58.4]} 7... O-O {[%clk 0:02:58]} 8. d3 {[%clk 0:02:58]} 8...
Qc7 {[%clk 0:02:56.7]} 9. Be3 {[%clk 0:02:55.8]} 9... a6 {[%clk 0:02:55]} 10.
Bxc6 {[%clk 0:02:55.2]} 10... Qxc6 {[%clk 0:02:55.9]} 11. h3 {[%clk 0:02:55.6]}
11... b5 {[%clk 0:02:55.1]} 12. Nbd2 {[%clk 0:02:55.2]} 12... Bb7 {[%clk
0:02:55.3]} 13. Rae1 {[%clk 0:02:55]} 13... Rac8 {[%clk 0:02:54.5]} 14. Bf2
{[%clk 0:02:48.6]} 14... Rfd8 {[%clk 0:02:49.6]} 15. d4 {[%clk 0:02:43.2]} 15...
cxd4 {[%clk 0:02:47.5]} 16. Nxd4 {[%clk 0:02:42.9]} 16... Qc7 {[%clk 0:02:47.3]}
17. a3 {[%clk 0:02:20.5]} 17... Nd7 {[%clk 0:02:43.7]} 18. N2f3 {[%clk
0:02:15.3]} 18... Nc5 {[%clk 0:02:42.1]} 19. Nb3 {[%clk 0:02:00.1]} 19... h6
{[%clk 0:02:23.3]} 20. Nxc5 {[%clk 0:01:56.1]} 20... dxc5 {[%clk 0:02:24.2]} 21.
f5 {[%clk 0:01:44.1]} 21... g5 {[%clk 0:02:06.6]} 22. Rd1 {[%clk 0:01:30.7]}
22... Be5 {[%clk 0:02:01.6]} 23. Qe2 {[%clk 0:01:19.5]} 23... Bf4 {[%clk
0:01:45.7]} 24. b4 {[%clk 0:01:03.4]} 24... cxb4 {[%clk 0:01:38.7]} 25. cxb4
{[%clk 0:01:02.3]} 25... Qc3 {[%clk 0:01:15.5]} 26. Bc5 {[%clk 0:00:40.9]} 26...
Qxa3 {[%clk 0:01:04]} 27. Bxe7 {[%clk 0:00:37.1]} 27... Rxd1 {[%clk 0:00:59]}
28. Rxd1 {[%clk 0:00:37.9]} 28... Re8 {[%clk 0:00:55]} 29. f6 {[%clk 0:00:36.8]}
29... Qe3+ {[%clk 0:00:46.9]} 30. Qxe3 {[%clk 0:00:31.6]} 30... Bxe3+ {[%clk
0:00:47.8]} 31. Kh1 {[%clk 0:00:29.2]} 31... Bxe4 {[%clk 0:00:47.8]} 32. Re1
{[%clk 0:00:29.1]} 32... Bxf3 {[%clk 0:00:46.7]} 33. Rxe3 {[%clk 0:00:26.6]}
33... Bd5 {[%clk 0:00:44.9]} 34. Rd3 {[%clk 0:00:20.1]} 34... Bc4 {[%clk
0:00:38.8]} 35. Rd6 {[%clk 0:00:19.7]} 35... Ra8 {[%clk 0:00:38.5]} 36. g4
{[%clk 0:00:14.8]} 36... Kh7 {[%clk 0:00:38.5]} 37. Kh2 {[%clk 0:00:12.9]} 37...
Kg6 {[%clk 0:00:38.6]} 38. Kg3 {[%clk 0:00:10.2]} 38... h5 {[%clk 0:00:36.4]}
39. Rb6 {[%clk 0:00:06.7]} 39... a5 {[%clk 0:00:33]} 40. bxa5 {[%clk 0:00:06.1]}
40... Rxa5 {[%clk 0:00:33.9]} 41. Rb8 {[%clk 0:00:06.3]} 41... h4+ {[%clk
0:00:31.4]} 42. Kf2 {[%clk 0:00:05.5]} 42... Ra2+ {[%clk 0:00:29.6]} 43. Kg1
{[%clk 0:00:04.2]} 43... Ra1+ {[%clk 0:00:28.6]} 44. Kf2 {[%clk 0:00:04.2]}
44... Ra2+ {[%clk 0:00:28.3]} 45. Kg1 {[%clk 0:00:04.5]} 45... Ra1+ {[%clk
0:00:28.2]} 46. Kf2 {[%clk 0:00:04.8]} 46... Rf1+ {[%clk 0:00:25.3]} 47. Kg2
{[%clk 0:00:03.7]} 47... Kh7 {[%clk 0:00:20.5]} 48. Re8 {[%clk 0:00:01.3]} 48...
Re1 {[%clk 0:00:17.2]} 49. Rb8 {[%clk 0:00:02]} 49... Re2+ {[%clk 0:00:16.9]}
50. Kg1 {[%clk 0:00:02.5]} 50... Re3 {[%clk 0:00:16.6]} 51. Kg2 {[%clk
0:00:02.9]} 51... Rb3 {[%clk 0:00:15.4]} 52. Rb7 {[%clk 0:00:02.5]} 52... Rb2+
{[%clk 0:00:14.5]} 53. Kg1 {[%clk 0:00:02.3]} 53... Rb1+ {[%clk 0:00:14.1]} 54.
Kh2 {[%clk 0:00:02.6]} 54... Rb2+ {[%clk 0:00:14.8]} 55. Kg1 {[%clk 0:00:02.8]}
55... Rb3 {[%clk 0:00:14.6]} 56. Bd8 {[%clk 0:00:01.8]} 56... Rg3+ {[%clk
0:00:12.6]} 57. Kf2 {[%clk 0:00:01.1]} 57... Rxh3 {[%clk 0:00:12.8]} 58. Be7
{[%clk 0:00:01.5]} 58... Rh2+ {[%clk 0:00:12.2]} 59. Ke3 {[%clk 0:00:01.9]}
59... Rb2 {[%clk 0:00:12.5]} 60. Ke4 {[%clk 0:00:02]} 60... h3 {[%clk
0:00:10.5]} 61. Bd6 {[%clk 0:00:02.4]} 61... h2 {[%clk 0:00:09]} 62. Bxh2 {[%clk
0:00:02.5]} 62... Rxh2 {[%clk 0:00:09.7]} 63. Kf5 {[%clk 0:00:03.2]} 63... Kh6
{[%clk 0:00:07.2]} 64. Rb8 {[%clk 0:00:02.8]} 64... Rf2+ {[%clk 0:00:07.3]} 65.
Ke5 {[%clk 0:00:03.3]} 65... Re2+ {[%clk 0:00:06]} 66. Kf5 {[%clk 0:00:03.3]}
66... Be6# {[%clk 0:00:06.1]} 0-1

[Event "Betsys MČR v online bleskovém šachu 2021"]
[Site "Chess.com"]
[Date "2021.04.17"]
[Round "7"]
[White "Diamantidis_13"]
[Black "TommyLud"]
[Result "1-0"]
[WhiteElo "2445"]
[BlackElo "2202"]
[TimeControl "180+1"]
[EndTime "10:13:20 PDT"]
[Termination "Uživatel Diamantidis_13 zvítězil po vzdání soupeře"]

1. Nf3 {[%clk 0:03:00.9]} 1... d5 {[%clk 0:02:59.6]} 2. d4 {[%clk 0:02:59.3]}
2... Nf6 {[%clk 0:02:59.2]} 3. c4 {[%clk 0:02:59.4]} 3... c6 {[%clk 0:02:59.4]}
4. Nc3 {[%clk 0:02:58.4]} 4... e6 {[%clk 0:02:59.2]} 5. e3 {[%clk 0:02:57.5]}
5... Nbd7 {[%clk 0:02:59.4]} 6. b3 {[%clk 0:02:56.5]} 6... Bb4 {[%clk 0:02:36]}
7. Bd2 {[%clk 0:02:56]} 7... Bd6 {[%clk 0:02:33.9]} 8. Bd3 {[%clk 0:02:47.2]}
8... O-O {[%clk 0:02:32]} 9. e4 {[%clk 0:02:43]} 9... dxe4 {[%clk 0:02:27.4]}
10. Nxe4 {[%clk 0:02:43.9]} 10... Nxe4 {[%clk 0:02:26.9]} 11. Bxe4 {[%clk
0:02:44.8]} 11... f5 {[%clk 0:02:11.5]} 12. Bc2 {[%clk 0:02:44.1]} 12... e5
{[%clk 0:02:11.4]} 13. c5 {[%clk 0:01:40.7]} 13... Bc7 {[%clk 0:02:03.3]} 14. b4
{[%clk 0:01:28.7]} 14... exd4 {[%clk 0:01:42.6]} 15. O-O {[%clk 0:01:02]} 15...
Ne5 {[%clk 0:01:18.1]} 16. Bb3+ {[%clk 0:00:53.3]} 16... Kh8 {[%clk 0:01:17.8]}
17. Nxe5 {[%clk 0:00:36.5]} 17... Bxe5 {[%clk 0:01:17.7]} 18. Re1 {[%clk
0:00:32.9]} 18... Bf6 {[%clk 0:01:03.6]} 19. Bf4 {[%clk 0:00:26.1]} 19... Re8
{[%clk 0:01:01.1]} 20. Bd6 {[%clk 0:00:13.3]} 20... Bd7 {[%clk 0:00:56.7]} 21.
Qf3 {[%clk 0:00:09.1]} 21... a5 {[%clk 0:00:41.4]} 22. b5 {[%clk 0:00:07.4]}
22... a4 {[%clk 0:00:41.5]} 23. Bf7 {[%clk 0:00:06.9]} 23... Rf8 {[%clk
0:00:32.9]} 24. Bxf8 {[%clk 0:00:05.9]} 24... Qxf8 {[%clk 0:00:33.8]} 25. Be6
{[%clk 0:00:06.1]} 25... Bxe6 {[%clk 0:00:33.7]} 26. Rxe6 {[%clk 0:00:06.6]}
26... Qxc5 {[%clk 0:00:33.1]} 27. bxc6 {[%clk 0:00:06.9]} 27... bxc6 {[%clk
0:00:29.9]} 28. Rxc6 {[%clk 0:00:07.1]} 28... Qa5 {[%clk 0:00:28.3]} 29. Rac1
{[%clk 0:00:04.7]} 29... h6 {[%clk 0:00:28.2]} 30. Rc8+ {[%clk 0:00:04.9]} 30...
Rxc8 {[%clk 0:00:28.4]} 31. Rxc8+ {[%clk 0:00:05.6]} 31... Kh7 {[%clk
0:00:29.1]} 32. g3 {[%clk 0:00:05.7]} 32... a3 {[%clk 0:00:28]} 33. Qa8 {[%clk
0:00:05.6]} 33... Qxa8 {[%clk 0:00:20.2]} 34. Rxa8 {[%clk 0:00:05]} 34... Be7
{[%clk 0:00:16.7]} 35. Ra7 {[%clk 0:00:04.8]} 35... Bc5 {[%clk 0:00:16.4]} 36.
Rc7 {[%clk 0:00:05.2]} 36... Bb4 {[%clk 0:00:15.6]} 37. Kf1 {[%clk 0:00:04.7]}
37... Bc3 {[%clk 0:00:15.6]} 38. Ke2 {[%clk 0:00:05]} 38... Kg6 {[%clk
0:00:15.8]} 39. Kd3 {[%clk 0:00:05.9]} 39... Kf6 {[%clk 0:00:15.4]} 40. Ra7
{[%clk 0:00:06.2]} 40... Bb2 {[%clk 0:00:15.1]} 41. Ra6+ {[%clk 0:00:05.6]}
41... Kf7 {[%clk 0:00:14.9]} 42. f4 {[%clk 0:00:06]} 42... g6 {[%clk 0:00:15]}
43. Ra7+ {[%clk 0:00:05.8]} 43... Kf6 {[%clk 0:00:15]} 44. Ra6+ {[%clk
0:00:06.7]} 44... Kf7 {[%clk 0:00:15]} 45. Kc4 {[%clk 0:00:06.8]} 45... h5
{[%clk 0:00:14.6]} 46. h4 {[%clk 0:00:05.4]} 46... Kg7 {[%clk 0:00:14.2]} 47.
Kd3 {[%clk 0:00:05.7]} 47... Kf7 {[%clk 0:00:14.3]} 48. Rc6 {[%clk 0:00:06.3]}
48... Kg7 {[%clk 0:00:14.4]} 49. Rd6 {[%clk 0:00:06.8]} 49... Kf7 {[%clk
0:00:14]} 50. Rxd4 {[%clk 0:00:07.4]} 50... Bxd4 {[%clk 0:00:12.1]} 51. Kxd4
{[%clk 0:00:08.3]} 51... Ke6 {[%clk 0:00:12.6]} 52. Kc5 {[%clk 0:00:08.7]} 52...
Ke7 {[%clk 0:00:08.2]} 53. Kb4 {[%clk 0:00:08.9]} 53... Kd6 {[%clk 0:00:08.2]}
54. Kxa3 {[%clk 0:00:09.6]} 54... Kd5 {[%clk 0:00:08.7]} 55. Kb4 {[%clk
0:00:10.1]} 55... Ke4 {[%clk 0:00:08.8]} 56. a4 {[%clk 0:00:11]} 56... Kf3
{[%clk 0:00:09.3]} 57. a5 {[%clk 0:00:11.9]} 57... Kxg3 {[%clk 0:00:09.8]} 58.
a6 {[%clk 0:00:12.8]} 58... Kxh4 {[%clk 0:00:09.2]} 59. a7 {[%clk 0:00:13.2]}
59... Kg3 {[%clk 0:00:09.8]} 60. a8=Q {[%clk 0:00:13.7]} 60... h4 {[%clk
0:00:10.7]} 61. Qh1 {[%clk 0:00:13.6]} 61... h3 {[%clk 0:00:11.2]} 62. Kc3
{[%clk 0:00:13.8]} 62... Kxf4 {[%clk 0:00:08.4]} 63. Qxh3 {[%clk 0:00:13.2]}
63... g5 {[%clk 0:00:08.8]} 64. Kd3 {[%clk 0:00:14]} 64... g4 {[%clk 0:00:09.2]}
65. Qh4 {[%clk 0:00:14.1]} 65... Kf3 {[%clk 0:00:09.1]} 66. Kd2 {[%clk
0:00:13.8]} 66... f4 {[%clk 0:00:08.8]} 67. Ke1 {[%clk 0:00:14]} 67... g3 {[%clk
0:00:09.1]} 68. Qh3 {[%clk 0:00:14.2]} 68... Ke3 {[%clk 0:00:06.3]} 69. Qg4
{[%clk 0:00:14.3]} 69... Ke4 {[%clk 0:00:05]} 70. Ke2 {[%clk 0:00:14.6]} 70...
Ke5 {[%clk 0:00:05.3]} 71. Kf3 {[%clk 0:00:14.6]} 1-0

[Event "Betsys MČR v online bleskovém šachu 2021"]
[Site "Chess.com"]
[Date "2021.04.17"]
[Round "7"]
[White "Eliska0107"]
[Black "Jacques_se_mas"]
[Result "1-0"]
[WhiteElo "2000"]
[BlackElo "1745"]
[TimeControl "180+1"]
[EndTime "10:13:22 PDT"]
[Termination "Uživatel Eliska0107 zvítězil na čas"]

1. e4 {[%clk 0:03:00.9]} 1... e6 {[%clk 0:02:59.8]} 2. d4 {[%clk 0:03:00.1]}
2... b6 {[%clk 0:03:00.2]} 3. Bd3 {[%clk 0:02:57.5]} 3... Bb7 {[%clk 0:03:00.1]}
4. Qe2 {[%clk 0:02:57.4]} 4... Be7 {[%clk 0:02:40.2]} 5. Nf3 {[%clk 0:02:53.5]}
5... Nf6 {[%clk 0:02:30.9]} 6. O-O {[%clk 0:02:52.5]} 6... d5 {[%clk 0:02:24.7]}
7. e5 {[%clk 0:02:51.6]} 7... Ne4 {[%clk 0:02:25.1]} 8. Nbd2 {[%clk 0:02:47.6]}
8... Nxd2 {[%clk 0:02:22.4]} 9. Bxd2 {[%clk 0:02:47.1]} 9... c5 {[%clk
0:02:20.7]} 10. c3 {[%clk 0:02:46.7]} 10... h6 {[%clk 0:02:16.5]} 11. a4 {[%clk
0:02:40.6]} 11... a5 {[%clk 0:02:10.6]} 12. Be3 {[%clk 0:02:21.5]} 12... Nc6
{[%clk 0:02:06]} 13. Rac1 {[%clk 0:02:18.5]} 13... c4 {[%clk 0:02:02.1]} 14. Bb1
{[%clk 0:02:17.7]} 14... Ba6 {[%clk 0:01:55]} 15. Qc2 {[%clk 0:02:16.2]} 15...
b5 {[%clk 0:01:52.6]} 16. axb5 {[%clk 0:02:06.8]} 16... Bxb5 {[%clk 0:01:51.3]}
17. Nd2 {[%clk 0:01:57.2]} 17... a4 {[%clk 0:01:48.3]} 18. f4 {[%clk 0:01:56.5]}
18... f5 {[%clk 0:01:42.7]} 19. exf6 {[%clk 0:01:55.7]} 19... Bxf6 {[%clk
0:01:34.7]} 20. Qg6+ {[%clk 0:01:52.3]} 20... Kd7 {[%clk 0:01:33.4]} 21. f5
{[%clk 0:01:50.9]} 21... Qe8 {[%clk 0:01:29.6]} 22. fxe6+ {[%clk 0:01:50.4]}
22... Ke7 {[%clk 0:01:22.6]} 23. Rxf6 {[%clk 0:01:29.7]} 23... gxf6 {[%clk
0:01:15.4]} 24. Qg7+ {[%clk 0:01:29.2]} 24... Kxe6 {[%clk 0:00:59.3]} 25. Bf4
{[%clk 0:01:23.9]} 25... Qf7 {[%clk 0:00:45.9]} 26. Re1+ {[%clk 0:01:20.2]}
26... Ne5 {[%clk 0:00:46.5]} 27. Qxf7+ {[%clk 0:01:04.5]} 27... Kxf7 {[%clk
0:00:45.9]} 28. dxe5 {[%clk 0:01:04.5]} 28... Rae8 {[%clk 0:00:42.1]} 29. Nf3
{[%clk 0:01:02.7]} 29... Bd7 {[%clk 0:00:29.8]} 30. Bc2 {[%clk 0:00:54.4]} 30...
h5 {[%clk 0:00:24.4]} 31. g3 {[%clk 0:00:52.5]} 31... Rhg8 {[%clk 0:00:22.7]}
32. Kf2 {[%clk 0:00:51.8]} 32... Bg4 {[%clk 0:00:17.7]} 33. Nd4 {[%clk
0:00:50.1]} 33... fxe5 {[%clk 0:00:13.7]} 34. Bxe5 {[%clk 0:00:49.5]} 34... Ra8
{[%clk 0:00:13.1]} 35. Bf4 {[%clk 0:00:46.1]} 35... a3 {[%clk 0:00:12.6]} 36.
bxa3 {[%clk 0:00:41.1]} 36... Rxa3 {[%clk 0:00:13.5]} 37. Re5 {[%clk 0:00:38.8]}
37... Rxc3 {[%clk 0:00:12.1]} 38. Rxd5 {[%clk 0:00:38.2]} 38... Re8 {[%clk
0:00:09.2]} 39. Rc5 {[%clk 0:00:36.9]} 39... Rxc2+ {[%clk 0:00:07.3]} 40. Nxc2
{[%clk 0:00:36.2]} 40... Re2+ {[%clk 0:00:08.2]} 41. Kf1 {[%clk 0:00:36.5]}
41... Rxc2 {[%clk 0:00:08.8]} 42. Ke1 {[%clk 0:00:34.3]} 42... Be6 {[%clk
0:00:06.5]} 43. h4 {[%clk 0:00:33.2]} 43... Kg6 {[%clk 0:00:05.4]} 44. Rg5+
{[%clk 0:00:32]} 44... Kf7 {[%clk 0:00:04.2]} 45. Rxh5 {[%clk 0:00:32]} 45... c3
{[%clk 0:00:04.4]} 46. Rh7+ {[%clk 0:00:31.5]} 46... Kf6 {[%clk 0:00:04.9]} 47.
Rc7 {[%clk 0:00:31.3]} 47... Kf5 {[%clk 0:00:03.5]} 48. h5 {[%clk 0:00:31]}
48... Ra2 {[%clk 0:00:02.2]} 49. Rxc3 {[%clk 0:00:26.3]} 49... Ra8 {[%clk
0:00:03.1]} 50. Kf2 {[%clk 0:00:26]} 50... Rh8 {[%clk 0:00:03.6]} 51. h6 {[%clk
0:00:26.3]} 51... Bf7 {[%clk 0:00:02.8]} 52. Rc6 {[%clk 0:00:26]} 52... Be6
{[%clk 0:00:03]} 53. Rc5+ {[%clk 0:00:25.7]} 53... Kg6 {[%clk 0:00:03.1]} 54.
Kf3 {[%clk 0:00:26]} 54... Kf7 {[%clk 0:00:03]} 55. g4 {[%clk 0:00:25.9]} 55...
Kg6 {[%clk 0:00:01.5]} 56. g5 {[%clk 0:00:25.8]} 56... Bf5 {[%clk 0:00:01.7]}
57. Rc6+ {[%clk 0:00:25.4]} 57... Kh5 {[%clk 0:00:02]} 58. Ke3 {[%clk 0:00:25]}
58... Bg4 {[%clk 0:00:02.5]} 59. Kd4 {[%clk 0:00:24.4]} 59... Rd8+ {[%clk
0:00:02.4]} 60. Ke5 {[%clk 0:00:24.2]} 60... Re8+ {[%clk 0:00:02.8]} 61. Kd6
{[%clk 0:00:21.8]} 61... Re4 {[%clk 0:00:02.8]} 62. Bc1 {[%clk 0:00:18.9]} 62...
Re6+ {[%clk 0:00:03.2]} 63. Kd7 {[%clk 0:00:18.5]} 63... Rxc6+ {[%clk
0:00:03.7]} 64. Kxc6 {[%clk 0:00:18.6]} 64... Bf5 {[%clk 0:00:04.4]} 65. Kd6
{[%clk 0:00:18.8]} 65... Bg6 {[%clk 0:00:04.6]} 66. Ke7 {[%clk 0:00:19.1]} 66...
Kg4 {[%clk 0:00:03.7]} 67. Kf6 {[%clk 0:00:19.3]} 67... Bf5 {[%clk 0:00:02.9]}
68. g6 {[%clk 0:00:19.4]} 1-0